fUSD/lending_fUSD_20241104
["ID","MTS","AMOUNT","RATE_DAILY","PERIOD"]
[341263997,1730735460626,-500.0,0.00036164,2]
[341263998,1730735460636,-500.0,0.00036164,2]
[341263999,1730735460646,-500.0,0.00036164,2]
[341264000,1730735460655,-500.0,0.00036164,2]
[341264001,1730735460665,-753.23,0.00036164,2]
[341264002,1730735460675,-628.78,0.00036164,2]
[341264003,1730735460684,-500.0,0.00036164,2]
[341264004,1730735460694,-500.0,0.00036164,2]
[341264005,1730735460704,-500.0,0.00036164,2]
[341264006,1730735460713,-500.0,0.00036164,2]
[341264007,1730735460722,-512.34,0.00036164,2]
[341264008,1730735460732,-500.0,0.00036164,2]
[341264009,1730735460742,-527.32523512,0.00036164,2]
[341264010,1730735460752,-690.94,0.00036164,2]
[341264011,1730735460761,-1122.64,0.00036164,2]
[341264012,1730735460771,-956.46,0.00036164,2]
[341264013,1730735460781,-500.0,0.00036164,2]
[341264014,1730735460790,-500.0,0.00036164,2]
[341264015,1730735460799,-500.0,0.00036164,2]
[341264016,1730735460809,-500.0,0.00036164,2]
[341264017,1730735460819,-391.15405022,0.00036164,2]
[341264018,1730735460830,-500.0,0.00036164,2]
[341264019,1730735460839,-500.0,0.00036164,2]
[341264020,1730735460849,-500.0,0.00036164,2]
[341264021,1730735460858,-197.91804687,0.00036164,2]
[341264022,1730735460868,-500.0,0.00036164,2]
[341264023,1730735460878,-500.0,0.00036164,2]
[341264024,1730735460887,-500.0,0.00036164,2]
[341264025,1730735460897,-1420.89,0.00036164,2]
[341264026,1730735460906,-705.19,0.00036164,2]
[341264027,1730735460916,-500.0,0.00036164,2]
[341264028,1730735460925,-767.22,0.00036164,2]
[341264029,1730735460935,-500.0,0.00036164,2]
[341264030,1730735460944,-712.63,0.00036164,2]
[341264031,1730735460954,-599.89799067,0.00036164,2]
[341264032,1730735460963,-500.0,0.00036164,2]
[341264033,1730735460973,-869.5,0.00036164,2]
[341264034,1730735460983,-500.0,0.00036164,2]
[341264035,1730735460992,-500.0,0.00036164,2]
[341264036,1730735461001,-500.0,0.00036164,2]
[341264037,1730735461011,-937.08,0.00036164,2]
[341264038,1730735461020,-764.15,0.00036164,2]
[341264039,1730735461030,-500.0,0.00036164,2]
[341264040,1730735461040,-1294.05,0.00036164,2]
[341264041,1730735461049,-500.0,0.00036164,2]
[341264042,1730735461059,-500.0,0.00036164,2]
[341264043,1730735461068,-510.62,0.00036164,2]
[341264044,1730735461079,-524.31,0.00036164,2]
[341264045,1730735461089,-500.0,0.00036164,2]
[341264046,1730735461100,-500.0,0.00036164,2]
[341264047,1730735461109,-500.0,0.00036164,2]
[341264048,1730735461119,-1118.2,0.00036164,2]
[341264049,1730735461130,-500.0,0.00036164,2]
[341264050,1730735461141,-500.0,0.00036164,2]
[341264051,1730735461152,-428.51711188,0.00036164,2]
[341264052,1730735461161,-297.16504891,0.00036164,2]
[341264053,1730735461171,-500.0,0.00036164,2]
[341264054,1730735461183,-711.3,0.00036164,2]
[341264055,1730735461193,-500.0,0.00036164,2]
[341264056,1730735461202,-1519.0,0.00036164,2]
[341264057,1730735461211,-500.0,0.00036164,2]
[341264058,1730735461221,-500.0,0.00036164,2]
[341264059,1730735461230,-500.0,0.00036164,2]
[341264060,1730735461240,-500.0,0.00036164,2]
[341264061,1730735461250,-500.0,0.00036164,2]
[341264062,1730735461259,-1126.44,0.00036164,2]
[341264063,1730735461269,-544.05,0.00036164,2]
[341264064,1730735461278,-500.0,0.00036164,2]
[341264065,1730735461288,-500.0,0.00036164,2]
[341264066,1730735461297,-500.0,0.00036164,2]
[341264067,1730735461307,-490.37401164,0.00036164,2]
[341264068,1730735461317,-500.0,0.00036164,2]
[341264069,1730735461326,-1288.14,0.00036164,2]
[341264070,1730735461336,-543.83,0.00036164,2]
[341264071,1730735461346,-500.0,0.00036164,2]
[341264072,1730735461355,-636.36,0.00036164,2]
[341264073,1730735461364,-1218.15,0.00036164,2]
[341264074,1730735461374,-500.0,0.00036164,2]
[341264075,1730735461383,-1259.81,0.00036164,2]
[341264076,1730735461396,-1651.88,0.00036164,2]
[341264077,1730735461405,-535.43896649,0.00036164,2]
[341264078,1730735461415,-319.99,0.00036164,2]
[341264079,1730735461425,-500.0,0.00036164,2]
[341264080,1730735461435,-500.0,0.00036164,2]
[341264081,1730735461445,-500.0,0.00036164,2]
[341264082,1730735461455,-1360.92,0.00036164,2]
[341264083,1730735461470,-500.0,0.00036164,2]
[341264084,1730735461479,-500.0,0.00036164,2]
[341264085,1730735461488,-912.89,0.00036164,2]
[341264086,1730735461498,-500.0,0.00036164,2]
[341264087,1730735461507,-500.0,0.00036164,2]
[341264088,1730735461516,-184.13752552,0.00036164,2]
[341264089,1730735461526,-500.0,0.00036164,2]
[341264090,1730735461535,-500.0,0.00036164,2]
[341264091,1730735461544,-500.0,0.00036164,2]
[341264092,1730735461554,-719.39,0.00036164,2]
[341264093,1730735461563,-500.0,0.00036164,2]
[341264094,1730735461573,-704.43,0.00036164,2]
[341264095,1730735461721,-669.63,0.00036164,2]
[341264096,1730735461731,-500.0,0.00036164,2]
[341264097,1730735461741,-500.0,0.00036164,2]
[341264098,1730735461751,-529.69,0.00036164,2]
[341264099,1730735461761,-500.0,0.00036164,2]
[341264100,1730735461771,-500.0,0.00036164,2]
[341264101,1730735461781,-173.03494852,0.00036164,2]
[341264102,1730735461790,-500.0,0.00036164,2]
[341264103,1730735461800,-500.0,0.00036164,2]
[341264104,1730735461810,-500.0,0.00036164,2]
[341264105,1730735461819,-500.0,0.00036164,2]
[341264106,1730735461829,-500.0,0.00036164,2]
[341264107,1730735461839,-1802.68,0.00036164,2]
[341264108,1730735461849,-500.0,0.00036164,2]
[341264109,1730735461859,-500.0,0.00036164,2]
[341264110,1730735461868,-500.0,0.00036164,2]
[341264111,1730735461878,-500.0,0.00036164,2]
[341264112,1730735461888,-500.0,0.00036164,2]
[341264113,1730735461898,-500.0,0.00036164,2]
[341264114,1730735461907,-687.5,0.00036164,2]
[341264115,1730735461916,-500.0,0.00036164,2]
[341264116,1730735461926,-500.0,0.00036164,2]
[341264117,1730735461936,-1321.04,0.00036164,2]
[341264118,1730735461945,-909.72,0.00036164,2]
[341264119,1730735461954,-307.71338932,0.00036164,2]
[341264120,1730735461964,-500.0,0.00036164,2]
[341264121,1730735461973,-500.0,0.00036164,2]
[341264122,1730735461983,-500.0,0.00036164,2]
[341264123,1730735461992,-548.23757298,0.00036164,2]
[341264124,1730735462002,-326.14033958,0.00036164,2]
[341264125,1730735462011,-500.0,0.00036164,2]
[341264126,1730735462021,-500.0,0.00036164,2]
[341264127,1730735462030,-879.57,0.00036164,2]
[341264128,1730735462040,-500.0,0.00036164,2]
[341264129,1730735462049,-571.76,0.00036164,2]
[341264130,1730735462059,-502.9452152,0.00036164,2]
[341264131,1730735462069,-500.0,0.00036164,2]
[341264132,1730735462078,-500.0,0.00036164,2]
[341264133,1730735462087,-500.0,0.00036164,2]
[341264134,1730735462096,-534.69,0.00036164,2]
[341264135,1730735462106,-555.85143711,0.00036164,2]
[341264136,1730735462115,-500.0,0.00036164,2]
[341264137,1730735462125,-500.0,0.00036164,2]
[341264138,1730735462135,-500.0,0.00036164,2]
[341264139,1730735462144,-449.27235071,0.00036164,2]
[341264140,1730735462153,-500.0,0.00036164,2]
[341264141,1730735462163,-939.96,0.00036164,2]
[341264142,1730735462173,-500.0,0.00036164,2]
[341264143,1730735462182,-980.66,0.00036164,2]
[341264144,1730735462192,-500.0,0.00036164,2]
[341264145,1730735462201,-546.11,0.00036164,2]
[341264146,1730735462211,-500.0,0.00036164,2]
[341264147,1730735462220,-511.22,0.00036164,2]
[341264148,1730735462230,-500.0,0.00036164,2]
[341264149,1730735462239,-500.0,0.00036164,2]
[341264150,1730735462249,-500.0,0.00036164,2]
[341264151,1730735462259,-505.5,0.00036164,2]
[341264152,1730735462269,-500.0,0.00036164,2]
[341264153,1730735462279,-500.0,0.00036164,2]
[341264154,1730735462289,-183.93889704,0.00036164,2]
[341264155,1730735462298,-500.0,0.00036164,2]
[341264156,1730735462308,-500.0,0.00036164,2]
[341264157,1730735462317,-984.46,0.00036164,2]
[341264158,1730735462327,-614.73,0.00036164,2]
[341264159,1730735462337,-500.0,0.00036164,2]
[341264160,1730735462347,-602.48,0.00036164,2]
[341264161,1730735462356,-988.32,0.00036164,2]
[341264162,1730735462365,-500.0,0.00036164,2]
[341264163,1730735462376,-500.0,0.00036164,2]
[341264164,1730735462388,-500.0,0.00036164,2]
[341264165,1730735462397,-631.52,0.00036164,2]
[341264166,1730735462408,-553.74,0.00036164,2]
[341264167,1730735462420,-988.27,0.00036164,2]
[341264168,1730735462430,-769.98,0.00036164,2]
[341264169,1730735462440,-500.0,0.00036164,2]
[341264170,1730735462449,-500.0,0.00036164,2]
[341264171,1730735462459,-500.0,0.00036164,2]
[341264172,1730735462470,-500.0,0.00036164,2]
[341264173,1730735462480,-500.0,0.00036164,2]
[341264174,1730735462491,-500.0,0.00036164,2]
[341264175,1730735462503,-1956.97,0.00036164,2]
[341264176,1730735462512,-500.0,0.00036164,2]
[341264177,1730735462522,-500.0,0.00036164,2]
[341264178,1730735462531,-500.0,0.00036164,2]
[341264179,1730735462541,-250.0,0.00036164,2]
[341264180,1730735462550,-500.0,0.00036164,2]
[341264181,1730735462560,-500.0,0.00036164,2]
[341264182,1730735462569,-566.39,0.00036164,2]
[341264183,1730735462579,-1694.4,0.00036164,2]
[341264184,1730735462588,-500.0,0.00036164,2]
[341264185,1730735462598,-500.0,0.00036164,2]
[341264186,1730735462608,-500.0,0.00036164,2]
[341264187,1730735462618,-500.0,0.00036164,2]
[341264188,1730735462628,-500.0,0.00036164,2]
[341264189,1730735462638,-500.0,0.00036164,2]
[341264190,1730735462648,-515.3,0.00036164,2]
[341264191,1730735462658,-500.0,0.00036164,2]
[341264192,1730735462669,-500.0,0.00036164,2]
[341264193,1730735462678,-879.85,0.00036164,2]
[341264194,1730735462688,-500.0,0.00036164,2]
[341264195,1730735462698,-263.82050724,0.00036164,2]
[341264196,1730735462708,-652.97,0.00036164,2]
[341264197,1730735462717,-500.0,0.00036164,2]
[341264198,1730735462727,-689.03,0.00036164,2]
[341264199,1730735462736,-500.0,0.00036164,2]
[341264200,1730735462745,-500.0,0.00036164,2]
[341264201,1730735462754,-500.0,0.00036164,2]
[341264202,1730735462763,-777.65,0.00036164,2]
[341264203,1730735462772,-500.0,0.00036164,2]
[341264204,1730735462782,-500.0,0.00036164,2]
[341264205,1730735462792,-500.0,0.00036164,2]
[341264206,1730735462801,-500.0,0.00036164,2]
[341264207,1730735462811,-500.0,0.00036164,2]
[341264208,1730735462820,-500.0,0.00036164,2]
[341264209,1730735462830,-500.0,0.00036164,2]
[341264210,1730735462839,-609.2,0.00036164,2]
[341264211,1730735462848,-1141.77,0.00036164,2]
[341264212,1730735462858,-815.25,0.00036164,2]
[341264213,1730735462868,-611.47,0.00036164,2]
[341264214,1730735462878,-500.0,0.00036164,2]
[341264215,1730735462888,-1247.49,0.00036164,2]
[341264216,1730735462897,-500.0,0.00036164,2]
[341264217,1730735462908,-2000.0,0.00036164,2]
[341264218,1730735462918,-500.0,0.00036164,2]
[341264219,1730735462927,-877.23,0.00036164,2]
[341264220,1730735462938,-1538.63,0.00036164,2]
[341264221,1730735462948,-1051.45,0.00036164,2]
[341264222,1730735462958,-500.0,0.00036164,2]
[341264223,1730735462969,-520.64973318,0.00036164,2]
[341264224,1730735462979,-500.0,0.00036164,2]
[341264225,1730735462988,-4150.77,0.00036164,2]
[341264226,1730735462998,-500.0,0.00036164,2]
[341264227,1730735463008,-745.46,0.00036164,2]
[341264228,1730735463019,-1876.8,0.00036164,2]
[341264229,1730735463029,-1151.0,0.00036164,2]
[341264230,1730735463039,-1770.42,0.00036164,2]
[341264231,1730735463049,-151.0,0.00036164,7]
[341264232,1730735463059,-151.0,0.00036164,7]
[341264233,1730735463069,-510.09,0.00036164,2]
[341264234,1730735463080,-500.0,0.00036164,2]
[341264235,1730735463090,-522.29,0.00036164,2]
[341264236,1730735463101,-958.22,0.00036164,2]
[341264237,1730735463110,-500.0,0.00036164,2]
[341264238,1730735463120,-500.0,0.00036164,2]
[341264239,1730735463130,-1127.16,0.00036164,2]
[341264240,1730735463140,-500.0,0.00036164,2]
[341264241,1730735463150,-500.0,0.00036164,2]
[341264242,1730735463160,-865.69,0.00036164,2]
[341264243,1730735463170,-500.0,0.00036164,2]
[341264244,1730735463181,-500.0,0.00036164,2]
[341264245,1730735463191,-323.09318585,0.00036164,2]
[341264246,1730735463201,-1128.13,0.00036164,2]
[341264247,1730735463211,-500.0,0.00036164,2]
[341264248,1730735463225,-500.0,0.00036164,2]
[341264249,1730735463235,-1045.13,0.00036164,2]
[341264250,1730735463246,-500.0,0.00036164,2]
[341264251,1730735463256,-500.0,0.00036164,2]
[341264252,1730735463267,-531.53,0.00036164,2]
[341264253,1730735463277,-500.0,0.00036164,2]
[341264254,1730735463287,-330.70455983,0.00036164,2]
[341264255,1730735463298,-500.0,0.00036164,2]
[341264256,1730735463308,-500.0,0.00036164,2]
[341264257,1730735463318,-2026.72,0.00036164,2]
[341264258,1730735463328,-500.0,0.00036164,2]
[341264259,1730735463338,-1098.81,0.00036164,2]
[341264260,1730735463348,-250.0,0.00036164,2]
[341264261,1730735463358,-500.0,0.00036164,2]
[341264262,1730735463367,-520.4,0.00036164,2]
[341264263,1730735463378,-500.0,0.00036164,2]
[341264264,1730735463393,-519.04,0.00036164,2]
[341264265,1730735463402,-500.0,0.00036164,2]
[341264266,1730735463412,-500.0,0.00036164,2]
[341264267,1730735463422,-500.0,0.00036164,2]
[341264268,1730735463434,-500.0,0.00036164,2]
[341264269,1730735463444,-500.0,0.00036164,2]
[341264270,1730735463453,-627.52,0.00036164,2]
[341264271,1730735463469,-500.0,0.00036164,2]
[341264272,1730735463479,-500.0,0.00036164,2]
[341264273,1730735463489,-587.36,0.00036164,2]
[341264274,1730735463500,-500.0,0.00036164,2]
[341264275,1730735463510,-330.95701654,0.00036164,2]
[341264276,1730735463520,-500.0,0.00036164,2]
[341264277,1730735463530,-500.0,0.00036164,2]
[341264278,1730735463540,-500.0,0.00036164,2]
[341264279,1730735463549,-500.0,0.00036164,2]
[341264280,1730735463559,-500.0,0.00036164,2]
[341264281,1730735463570,-2121.93,0.00036164,2]
[341264282,1730735463579,-500.0,0.00036164,2]
[341264283,1730735463589,-500.0,0.00036164,2]
[341264284,1730735463601,-582.71,0.00036164,2]
[341264285,1730735463612,-500.0,0.00036164,2]
[341264286,1730735463622,-1427.63,0.00036164,2]
[341264287,1730735463632,-500.0,0.00036164,2]
[341264288,1730735463642,-791.14,0.00036164,2]
[341264289,1730735463652,-500.0,0.00036164,2]
[341264290,1730735463662,-500.0,0.00036164,2]
[341264291,1730735463672,-1116.56,0.00036164,2]
[341264292,1730735463681,-500.0,0.00036164,2]
[341264293,1730735463691,-500.0,0.00036164,2]
[341264294,1730735463702,-2018.13,0.00036164,2]
[341264295,1730735463715,-1093.28,0.00036164,2]
[341264296,1730735463724,-500.0,0.00036164,2]
[341264297,1730735463735,-500.0,0.00036164,2]
[341264298,1730735463745,-279.98186841,0.00036164,2]
[341264299,1730735463755,-521.40943712,0.00036164,2]
[341264300,1730735463765,-1104.45,0.00036164,2]
[341264301,1730735463775,-1687.58,0.00036164,2]
[341264302,1730735463785,-500.0,0.00036164,2]
[341264303,1730735463795,-500.0,0.00036164,2]
[341264304,1730735463805,-911.86,0.00036164,2]
[341264305,1730735463814,-500.0,0.00036164,2]
[341264306,1730735463824,-835.19,0.00036164,2]
[341264307,1730735463834,-878.68,0.00036164,2]
[341264308,1730735463844,-500.0,0.00036164,2]
[341264309,1730735463854,-1098.84,0.00036164,2]
[341264310,1730735463864,-172.62209791,0.00036164,2]
[341264311,1730735463874,-500.0,0.00036164,2]
[341264312,1730735463884,-1310.74,0.00036164,2]
[341264313,1730735463896,-500.0,0.00036164,2]
[341264314,1730735463906,-2183.79,0.00036164,2]
[341264315,1730735463916,-500.0,0.00036164,2]
[341264316,1730735463926,-820.36,0.00036164,2]
[341264317,1730735463936,-515.02,0.00036164,2]
[341264318,1730735463945,-500.0,0.00036164,2]
[341264319,1730735463955,-398.90295956,0.00036164,2]
[341264320,1730735463965,-500.0,0.00036164,2]
[341264321,1730735463974,-500.0,0.00036164,2]
[341264322,1730735463985,-500.0,0.00036164,2]
[341264323,1730735463994,-500.0,0.00036164,2]
[341264324,1730735464004,-500.0,0.00036164,2]
[341264325,1730735464014,-348.48072343,0.00036164,2]
[341264326,1730735464023,-500.0,0.00036164,2]
[341264327,1730735464034,-500.0,0.00036164,2]
[341264328,1730735464043,-500.0,0.00036164,2]
[341264329,1730735464053,-500.0,0.00036164,2]
[341264330,1730735464062,-500.0,0.00036164,2]
[341264331,1730735464072,-1708.91,0.00036164,2]
[341264332,1730735464082,-150.51620239,0.00036164,2]
[341264333,1730735464091,-544.98,0.00036164,2]
[341264334,1730735464101,-500.0,0.00036164,2]
[341264335,1730735464111,-500.0,0.00036164,2]
[341264336,1730735464121,-660.53,0.00036164,2]
[341264337,1730735464131,-500.0,0.00036164,2]
[341264338,1730735464186,-850.52,0.00036164,2]
[341264339,1730735464196,-564.44,0.00036164,2]
[341264340,1730735464206,-500.0,0.00036164,2]
[341264341,1730735464216,-752.59,0.00036164,2]
[341264342,1730735464226,-500.0,0.00036164,2]
[341264343,1730735464235,-500.0,0.00036164,2]
[341264344,1730735464245,-537.78327924,0.00036164,2]
[341264345,1730735464254,-500.0,0.00036164,2]
[341264346,1730735464263,-500.0,0.00036164,2]
[341264347,1730735464273,-500.0,0.00036164,2]
[341264348,1730735464282,-1296.67,0.00036164,2]
[341264349,1730735464291,-500.0,0.00036164,2]
[341264350,1730735464300,-1584.46,0.00036164,2]
[341264351,1730735464310,-500.0,0.00036164,2]
[341264352,1730735464320,-1066.3,0.00036164,2]
[341264353,1730735464330,-1582.17,0.00036164,2]
[341264354,1730735464340,-500.0,0.00036164,2]
[341264355,1730735464349,-541.18463823,0.00036164,2]
[341264356,1730735464359,-500.0,0.00036164,2]
[341264357,1730735464369,-500.0,0.00036164,2]
[341264358,1730735464378,-500.0,0.00036164,2]
[341264359,1730735464391,-539.14474934,0.00036164,2]
[341264360,1730735464401,-500.0,0.00036164,2]
[341264361,1730735464410,-500.0,0.00036164,2]
[341264362,1730735464420,-500.0,0.00036164,2]
[341264363,1730735464429,-500.0,0.00036164,2]
[341264364,1730735464439,-500.0,0.00036164,2]
[341264365,1730735464450,-500.0,0.00036164,2]
[341264366,1730735464459,-151.0,0.00036164,7]
[341264367,1730735464469,-1042.76,0.00036164,2]
[341264368,1730735464479,-500.0,0.00036164,2]
[341264369,1730735464489,-1058.38,0.00036164,2]
[341264370,1730735464498,-500.0,0.00036164,2]
[341264371,1730735464507,-151.0,0.00036164,7]
[341264372,1730735464517,-200.0,0.00036164,2]
[341264373,1730735464526,-505.09,0.00036164,2]
[341264374,1730735464535,-913.46,0.00036164,2]
[341264375,1730735464545,-2146.82,0.00036164,2]
[341264376,1730735464554,-766.26,0.00036164,2]
[341264377,1730735464563,-500.0,0.00036164,2]
[341264378,1730735464573,-1191.45,0.00036164,2]
[341264379,1730735464582,-500.0,0.00036164,2]
[341264380,1730735464592,-500.0,0.00036164,2]
[341264381,1730735464602,-500.0,0.00036164,2]
[341264382,1730735464612,-500.0,0.00036164,2]
[341264383,1730735464621,-609.71,0.00036164,2]
[341264384,1730735464631,-938.94,0.00036164,2]
[341264385,1730735464641,-734.64,0.00036164,2]
[341264386,1730735464650,-500.0,0.00036164,2]
[341264387,1730735464660,-500.0,0.00036164,2]
[341264388,1730735464670,-158.34438245,0.00036164,2]
[341264389,1730735464679,-431.90176576,0.00036164,2]
[341264390,1730735464689,-500.0,0.00036164,2]
[341264391,1730735464699,-300.0,0.00036164,2]
[341264392,1730735464709,-541.78613814,0.00036164,2]
[341264393,1730735464720,-164.24,0.00036164,2]
[341264394,1730735464729,-500.0,0.00036164,2]
[341264395,1730735464739,-530.41,0.00036164,2]
[341264396,1730735464749,-500.0,0.00036164,2]
[341264397,1730735464758,-587.64163482,0.00036164,2]
[341264398,1730735464768,-1127.04,0.00036164,2]
[341264399,1730735464777,-654.01,0.00036164,2]
[341264400,1730735464787,-544.00258897,0.00036164,2]
[341264401,1730735464796,-3340.62,0.00036164,2]
[341264402,1730735464806,-500.0,0.00036164,2]
[341264403,1730735464815,-500.0,0.00036164,2]
[341264404,1730735464825,-500.0,0.00036164,2]
[341264405,1730735464834,-10593.24,0.00036164,2]
[341264406,1730735464844,-500.0,0.00036164,2]
[341264407,1730735464854,-500.0,0.00036164,2]
[341264408,1730735464863,-735.14,0.00036164,2]
[341264409,1730735464873,-500.0,0.00036164,2]
[341264410,1730735464882,-500.0,0.00036164,2]
[341264411,1730735464892,-1246.62,0.00036164,2]
[341264412,1730735464903,-528.03,0.00036164,2]
[341264413,1730735464912,-3005.2,0.00036164,2]
[341264414,1730735464922,-500.0,0.00036164,2]
[341264415,1730735464932,-500.0,0.00036164,2]
[341264416,1730735464942,-500.0,0.00036164,2]
[341264417,1730735464952,-500.0,0.00036164,2]
[341264418,1730735464961,-558.26,0.00036164,2]
[341264419,1730735464971,-656.86,0.00036164,2]
[341264420,1730735464980,-151.0,0.00036164,7]
[341264421,1730735464990,-1000.0,0.00036164,2]
[341264422,1730735464999,-500.0,0.00036164,2]
[341264423,1730735465009,-625.73,0.00036164,2]
[341264424,1730735465018,-2616.04,0.00036164,2]
[341264425,1730735465027,-500.0,0.00036164,2]
[341264426,1730735465037,-3461.86,0.00036164,2]
[341264427,1730735465046,-500.0,0.00036164,2]
[341264428,1730735465055,-500.0,0.00036164,2]
[341264429,1730735465065,-500.0,0.00036164,2]
[341264430,1730735465074,-1222.7,0.00036164,2]
[341264431,1730735465084,-514.78,0.00036164,2]
[341264432,1730735465093,-500.0,0.00036164,2]
[341264433,1730735465102,-500.0,0.00036164,2]
[341264434,1730735465112,-500.0,0.00036164,2]
[341264435,1730735465121,-500.0,0.00036164,2]
[341264436,1730735465130,-500.0,0.00036164,2]
[341264437,1730735465140,-954.74,0.00036164,2]
[341264438,1730735465149,-692.32,0.00036164,2]
[341264439,1730735465159,-596.33,0.00036164,2]
[341264440,1730735465168,-500.0,0.00036164,2]
[341264441,1730735465178,-500.0,0.00036164,2]
[341264442,1730735465187,-255.746573,0.00036164,7]
[341264443,1730735465196,-255.746573,0.00036164,7]
[341264444,1730735465205,-1916.99,0.00036164,2]
[341264445,1730735465215,-515.66202559,0.00036164,2]
[341264446,1730735465224,-500.0,0.00036164,2]
[341264447,1730735465233,-201.1,0.000362,30]
[341264448,1730735465243,-1255.75,0.00036301,120]
[341264449,1730735465252,-500.0,0.00036437,2]
[341264450,1730735465261,-500.0,0.00036437,2]
[341264451,1730735465271,-500.0,0.00036437,2]
[341264452,1730735465280,-519.87,0.00036437,2]
[341264453,1730735465289,-500.0,0.00036437,2]
[341264454,1730735465298,-500.0,0.00036437,2]
[341264455,1730735465307,-500.0,0.00036437,2]
[341264456,1730735465316,-500.0,0.00036437,2]
[341264457,1730735465325,-500.0,0.00036437,2]
[341264458,1730735465334,-500.0,0.00036437,2]
[341264459,1730735465343,-500.0,0.00036437,2]
[341264460,1730735465353,-500.0,0.00036437,2]
[341264461,1730735465362,-500.0,0.00036437,2]
[341264462,1730735465371,-500.0,0.00036437,2]
[341264463,1730735465383,-500.0,0.00036437,2]
[341264464,1730735465394,-500.0,0.00036437,2]
[341264465,1730735465403,-500.0,0.00036437,2]
[341264466,1730735465412,-500.0,0.00036437,2]
[341264467,1730735465423,-500.0,0.00036437,2]
[341264468,1730735465432,-500.0,0.00036437,2]
[341264469,1730735465442,-500.0,0.00036437,2]
[341264470,1730735465451,-500.0,0.00036437,2]
[341264471,1730735465463,-500.0,0.00036437,2]
[341264472,1730735465475,-500.0,0.00036437,2]
[341264473,1730735465484,-500.0,0.00036437,2]
[341264474,1730735465493,-500.0,0.00036437,2]
[341264475,1730735465502,-500.0,0.00036437,2]
[341264476,1730735465511,-500.0,0.00036437,2]
[341264477,1730735465520,-500.0,0.00036437,2]
[341264478,1730735465530,-520.96058082,0.00036437,2]
[341264479,1730735465540,-500.0,0.00036437,2]
[341264480,1730735465549,-500.0,0.00036437,2]
[341264481,1730735465559,-500.0,0.00036437,2]
[341264482,1730735465569,-500.0,0.00036437,2]
[341264483,1730735465579,-500.0,0.00036437,2]
[341264484,1730735465588,-500.0,0.00036437,2]
[341264485,1730735465597,-500.0,0.00036437,2]
[341264486,1730735465607,-500.0,0.00036437,2]
[341264487,1730735465616,-500.0,0.00036437,2]
[341264488,1730735465626,-500.0,0.00036437,2]
[341264489,1730735465635,-500.0,0.00036437,2]
[341264490,1730735465645,-520.94,0.00036437,2]
[341264491,1730735465655,-879.46,0.00036437,2]
[341264492,1730735465664,-258.42809513,0.00036437,2]
[341264493,1730735465674,-500.0,0.00036437,2]
[341264494,1730735465684,-150.0,0.00036437,2]
[341264495,1730735465693,-500.0,0.00036437,2]
[341264496,1730735465703,-575.99,0.00036437,2]